bitfinex/quotes_ETHUSD_20240926
["timestamp","ask_amount","ask_price","bid_price","bid_amount"]
[1727394390839,0.59445223,2634.6,2634.5,3.03662]
[1727394394983,0.59445223,2634.6,2634.3,3.03676]
[1727394396794,0.59445223,2634.6,2634.3,6.07354]
[1727394396951,0.59445223,2634.6,2634.3,3.03676]
[1727394398165,0.59445223,2634.6,2634.3,6.07354]
[1727394398470,0.59445223,2634.6,2634.4,3.03671]
[1727394399788,0.59445223,2634.6,2634.3,3.03676]
[1727394399995,0.59445223,2634.6,2634.4,3.03672]
[1727394400661,0.59445223,2634.6,2634.3,3.03676]
[1727394400864,0.59445223,2634.6,2634.1,3.03707]
[1727394401199,0.59445223,2634.6,2634.3,3.03685]
[1727394401200,0.85181927,2634.6,2634.3,3.03685]
[1727394402600,1.64308205,2634.6,2634.3,3.03685]
[1727394402755,0.85181927,2634.6,2634.3,3.03685]
[1727394403178,1.38571501,2634.6,2634.4,3.03673]
[1727394403390,0.59445223,2634.6,2634.4,3.03673]
[1727394403999,0.59445223,2634.6,2634.5,3.03662]
[1727394405291,1.38571501,2634.6,2634.5,3.03662]
[1727394405492,1.38571501,2634.6,2634.3,3.03685]
[1727394407084,1.80149413,2634.6,2634.1,3.03703]
[1727394407291,1.34866278,2634.2,2633.9,3.03726]
[1727394407704,0.03719224,2634.1,2633.9,3.03726]
[1727394408262,0.03719224,2634.1,2634.0,3.0372]
[1727394408869,0.79126278,2634.3,2634.1,3.03702]
[1727394409603,0.79126278,2634.4,2634.3,3.03685]
[1727394409897,0.79126278,2634.5,2634.4,3.03674]
[1727394410278,0.79126278,2634.7,2634.5,3.03662]
[1727394410477,0.79126278,2634.7,2634.6,3.03651]
[1727394411114,1.20333667,2634.7,2634.4,3.03666]
[1727394411273,0.79126278,2634.6,2634.4,3.03666]
[1727394411474,0.79126278,2634.6,2634.5,3.03662]
[1727394412185,0.79126278,2634.6,2634.4,3.03666]
[1727394412700,0.03745108,2634.5,2634.4,3.03666]
[1727394414380,0.03745108,2634.5,2634.4,3.722811]
[1727394414582,0.79126278,2634.7,2634.4,4.19845154]
[1727394414885,1.18795542,2634.9,2634.4,4.19845154]
[1727394414886,0.79126278,2634.9,2634.8,3.03628]
[1727394415080,0.79126278,2635.0,2634.8,3.03628]
[1727394415788,0.79126278,2634.9,2634.8,3.03628]
[1727394417915,0.79126278,2634.9,2634.7,3.03639]
[1727394418123,0.79126278,2634.8,2634.7,3.03639]
[1727394418332,0.79126278,2634.9,2634.7,3.03639]
[1727394419895,0.79126278,2634.9,2634.7,6.07271]
[1727394420099,0.79126278,2634.9,2634.8,3.03628]
[1727394420481,0.79126278,2635.0,2634.8,3.03628]
[1727394420683,0.79126278,2634.9,2634.8,3.03628]
[1727394420947,0.79126278,2635.0,2634.8,3.03628]
[1727394421285,0.79126278,2635.0,2634.9,3.03616]
[1727394421902,0.79126278,2635.0,2634.8,3.03628]
[1727394422787,0.79126278,2634.9,2634.8,3.03628]
[1727394423615,0.79126278,2635.0,2634.9,3.03616]
[1727394424204,1.18795542,2635.1,2634.9,3.03616]
[1727394424911,0.79173035,2635.0,2634.9,3.03616]
[1727394426151,1.58412074,2635.2,2635.1,3.03593]
[1727394426152,0.79173035,2635.2,2635.1,3.03593]
[1727394426321,1.18795542,2635.3,2635.0,3.03605]
[1727394426322,0.79173035,2635.3,2635.0,3.03605]
[1727394426658,0.79173035,2635.4,2635.3,3.0357]
[1727394426812,0.79181606,2635.4,2635.3,3.0357]
[1727394427647,0.79181606,2635.5,2635.3,3.0357]
[1727394428948,0.79181606,2635.5,2635.2,3.03581]
[1727394429529,0.79181606,2635.5,2635.3,3.03564]
[1727394430052,0.79181606,2635.5,2635.3,3.84834]
[1727394430354,0.03771636,2635.4,2635.3,3.84834]
[1727394431053,0.03771636,2635.4,2635.3,0.8127]
[1727394431352,0.03771636,2635.4,2635.3,3.8484]
[1727394432328,0.79181606,2635.5,2635.3,3.8484]
[1727394432529,0.03709969,2635.4,2635.3,3.8484]
[1727394432967,0.79181606,2635.6,2635.4,3.03557]
[1727394433369,0.79181606,2635.7,2635.4,3.03557]
[1727394434053,0.03732457,2635.6,2635.4,3.03557]
[1727394434573,0.03732457,2635.6,2635.5,3.03547]
[1727394436146,0.79181606,2635.7,2635.5,3.03547]
[1727394436473,0.79181606,2635.7,2635.6,3.03536]
[1727394436673,0.79181606,2635.8,2635.6,3.03536]
[1727394437175,0.79181606,2635.9,2635.6,3.03536]
[1727394437380,0.79181606,2635.9,2635.6,3.84806]
[1727394437543,0.03763924,2635.8,2635.6,3.84806]
[1727394437938,0.79181606,2636.0,2635.6,3.84806]
[1727394438136,0.03756928,2635.7,2635.4,3.84827]
[1727394438384,1.34921606,2635.8,2635.5,3.03547]
[1727394438589,0.03749932,2635.6,2635.5,3.03547]
[1727394438885,0.79181606,2635.9,2635.6,3.03535]
[1727394439363,0.79181606,2635.9,2635.6,6.07062]
[1727394439691,1.34921606,2636.0,2635.7,3.03523]
[1727394440377,0.79181606,2636.0,2635.7,3.03523]
[1727394441076,0.79181606,2636.0,2635.6,3.03527]
[1727394441077,0.03792852,2635.9,2635.4,0.8127]
[1727394441264,0.03792852,2635.9,2635.6,3.03532]
[1727394441469,0.03792852,2635.9,2635.7,3.03521]
[1727394442352,0.79181606,2636.1,2635.7,3.03521]
[1727394442584,0.03785856,2635.8,2635.7,3.03521]
[1727394442750,1.50740528,2636.1,2635.7,3.03521]
[1727394442751,0.79181606,2636.1,2635.8,3.03508]
[1727394442952,1.34921606,2636.2,2635.9,3.035]
[1727394443602,0.5574,2636.2,2635.9,3.035]
[1727394444276,0.5574,2636.2,2636.0,3.0349]
[1727394444501,0.79181606,2636.3,2636.0,3.0349]
[1727394444704,1.45164528,2636.3,2636.0,3.0349]
[1727394445616,1.45164528,2636.3,2635.9,3.03495]
[1727394446174,1.45164528,2636.3,2635.9,6.0699]
[1727394446714,1.45164528,2636.3,2635.9,6.06989]
[1727394446919,1.45164528,2636.3,2635.9,3.03494]
[1727394447116,1.45164528,2636.3,2636.0,3.03487]
[1727394447909,1.45164528,2636.3,2636.1,3.03477]
[1727394448096,0.79181606,2636.3,2636.1,3.03477]
[1727394449515,1.34921606,2636.4,2635.9,6.06988]
[1727394449727,1.34921606,2636.4,2635.9,6.06989]
[1727394450023,4.38366606,2636.4,2635.9,3.03494]
[1727394450316,0.79181606,2636.3,2635.9,3.03494]
[1727394450516,4.38366606,2636.4,2635.9,3.03494]
[1727394450812,5.45047034,2636.4,2635.9,3.03494]
[1727394451213,2.41602034,2636.4,2635.9,3.03494]
[1727394452650,0.03700344,2636.3,2635.9,3.03494]
[1727394453523,0.03700344,2636.3,2635.9,6.06989]
[1727394454223,0.03700344,2636.3,2635.9,3.03494]
[1727394454423,0.8288195,2636.3,2636.0,3.03484]
[1727394454949,1.24745102,2636.3,2636.0,3.03484]
[1727394455354,1.24745102,2636.3,2635.9,6.06989]
[1727394455818,1.24745102,2636.3,2635.9,3.03494]
[1727394456226,1.24745102,2636.3,2635.9,6.06988]
[1727394457658,0.79181606,2636.2,2635.8,3.03508]
[1727394457860,1.1521707,2636.1,2635.8,3.03508]
[1727394458061,1.18930423,2636.1,2635.8,3.03508]
[1727394458964,1.98112029,2636.1,2635.8,3.03508]
[1727394459426,1.98112029,2636.1,2635.8,6.07014]
[1727394460235,1.98112029,2636.1,2635.8,6.07012]
[1727394461341,1.98112029,2636.1,2635.9,3.03499]
[1727394462302,0.79181606,2636.0,2635.9,3.03499]
[1727394462636,0.82882306,2636.0,2635.9,3.03499]
[1727394462838,0.037007,2636.0,2635.9,3.03499]
[1727394465575,0.037007,2636.0,2635.2,1.62008919]
[1727394465576,0.5574,2635.9,2635.6,3.0353]
[1727394465793,0.5574,2635.9,2635.2,3.03575]
[1727394465794,0.5574,2635.6,2635.2,3.03575]
[1727394466123,0.79140324,2635.4,2635.2,3.03575]
[1727394466585,0.03682732,2635.3,2635.2,3.03575]
[1727394467111,3.04649053,2635.3,2634.7,3.03632]
[1727394467312,0.79125261,2635.1,2634.8,3.03626]
[1727394467511,1.38532502,2635.2,2634.8,3.03626]
[1727394467698,0.03653244,2635.0,2634.9,3.03615]
[1727394467908,1.34865261,2635.2,2635.0,3.03596]
[1727394468077,0.79125261,2635.2,2634.9,3.03615]
[1727394468416,0.79125261,2635.2,2635.1,3.03593]
[1727394468829,0.79125261,2635.3,2635.1,3.03593]
[1727394469526,0.79165981,2635.3,2635.2,3.03582]
[1727394469700,0.79165981,2635.4,2635.2,3.03582]
[1727394470085,0.03639922,2635.3,2635.2,3.03582]
[1727394470525,0.82805903,2635.3,2635.2,3.03582]
[1727394474349,0.82805903,2635.3,2635.2,3.82202]
[1727394474520,0.03639922,2635.3,2635.2,3.82202]
[1727394475133,0.82805903,2635.3,2635.2,3.82202]
[1727394475653,0.03639922,2635.3,2635.2,3.82202]
[1727394475857,0.82805903,2635.3,2635.2,3.82202]
[1727394477015,0.03639922,2635.3,2635.2,3.82202]
[1727394477453,0.82805903,2635.3,2635.2,3.82202]
[1727394477813,0.03639922,2635.3,2635.2,3.82202]
[1727394482951,0.79165981,2635.5,2635.4,3.03559]
[1727394485294,0.79165981,2635.5,2635.3,3.03569]
[1727394485501,0.79165981,2635.5,2635.3,6.07138]
[1727394485790,0.79165981,2635.5,2635.3,3.03564]
[1727394485995,0.79165981,2635.5,2635.3,6.07128]
[1727394486396,0.03610885,2635.4,2635.2,3.03581]
[1727394486694,0.82776866,2635.4,2635.3,3.0357]
[1727394487058,0.03610885,2635.4,2635.2,3.03581]
[1727394487257,0.03610885,2635.4,2635.2,3.03574]
[1727394487494,0.82776866,2635.4,2635.2,3.03574]
[1727394488057,0.82776866,2635.4,2635.2,6.07149]
[1727394488265,0.82776866,2635.4,2635.2,3.03574]
[1727394488623,0.82776866,2635.4,2635.3,3.0357]
[1727394488800,0.82776866,2635.4,2635.2,3.03574]
[1727394489799,0.82776866,2635.4,2635.3,3.0357]
[1727394492302,0.82776866,2635.4,2635.2,3.84864]
[1727394492511,0.82776866,2635.4,2635.2,3.03574]
[1727394492885,0.79165981,2635.3,2635.2,3.03574]
[1727394493398,0.82775735,2635.3,2635.2,3.03574]
[1727394493991,1.38515735,2635.3,2635.0,3.03596]
[1727394494203,1.38515735,2635.3,2634.7,0.8129]
[1727394494414,1.80077305,2635.3,2634.8,3.03617]
[1727394494585,0.79165981,2635.1,2634.8,3.03617]
[1727394494987,0.03614782,2635.0,2634.8,3.03617]
[1727394495416,1.38520763,2635.0,2634.6,10.37644]
[1727394495622,0.79165981,2634.9,2634.6,10.37644]
[1727394495975,0.0361494,2634.8,2634.6,3.03644]
[1727394496415,0.0361494,2634.8,2634.7,3.03638]
[1727394496578,0.79165981,2634.9,2634.7,3.03638]
[1727394496779,0.03584408,2634.8,2634.7,3.03638]
[1727394497574,0.79165981,2634.9,2634.7,3.03638]
[1727394497771,0.03601667,2634.8,2634.7,3.03638]
[1727394498313,0.03601667,2634.8,2634.4,0.8129]
[1727394498614,2.86747156,2634.8,2634.3,3.03685]
[1727394498913,1.34905981,2634.7,2634.4,3.03673]
[1727394499299,0.03546599,2634.6,2634.4,3.03673]
[1727394501922,0.03546599,2634.6,2634.5,3.03662]
[1727394502326,0.03546599,2634.6,2634.5,3.83472]
[1727394502633,0.03546599,2634.6,2634.5,6.30446554]
[1727394503001,0.79165981,2634.8,2634.7,3.03639]
[1727394503340,0.79165981,2634.9,2634.8,3.83438]
[1727394503759,0.79165981,2635.3,2635.2,3.03582]
[1727394503917,0.79165981,2635.4,2635.2,3.03582]
[1727394504539,0.79165981,2635.3,2635.0,3.03601]
[1727394505038,0.79165981,2635.3,2635.2,3.03582]
[1727394506553,0.82703835,2635.3,2635.2,3.03582]
[1727394507514,0.03537854,2635.3,2635.2,3.03582]
[1727394508028,0.82703835,2635.3,2635.2,3.83392]
[1727394508229,0.03537854,2635.3,2635.2,4.441095]
[1727394508940,0.03537854,2635.3,2635.1,6.07176]
[1727394509146,0.03537854,2635.3,2635.1,3.03583]
[1727394509350,0.79165981,2635.4,2635.1,3.03583]
[1727394509531,0.03526435,2635.2,2635.1,3.03583]
[1727394509733,0.79165981,2635.3,2635.1,6.0717]
[1727394509929,0.03529266,2635.2,2635.1,3.03583]
[1727394510230,0.79165981,2635.3,2635.1,3.03583]
[1727394510555,0.8270657,2635.2,2635.1,3.03583]
[1727394513663,0.8270657,2635.2,2635.0,3.03604]
[1727394513872,0.8270657,2635.2,2634.9,3.03614]
[1727394514098,0.79165981,2635.1,2634.9,3.03614]
[1727394514392,0.79165981,2635.0,2634.9,3.03614]
[1727394514592,0.82733865,2635.0,2634.9,3.03614]
[1727394518473,0.03567884,2635.0,2634.9,3.03614]
[1727394523336,0.03567884,2635.0,2634.9,3.82674]
[1727394523507,0.03567884,2635.0,2634.9,4.52062683]
[1727394528401,0.79165981,2635.1,2635.0,3.03605]
[1727394532043,0.82722102,2635.1,2635.0,3.03605]
[1727394538671,0.82722102,2635.1,2635.0,5.45099332]
[1727394538858,0.03556121,2635.1,2635.0,6.38318795]
[1727394539364,0.79165981,2635.3,2635.2,3.03582]
[1727394540066,0.03561593,2635.3,2635.2,3.03582]
[1727394540430,0.82727574,2635.3,2635.2,3.03582]
[1727394543241,0.82727574,2635.3,2635.2,4.67868833]
[1727394543441,0.82727574,2635.3,2635.2,3.88448833]
[1727394544449,0.82727574,2635.3,2635.2,3.03582]
[1727394545446,0.03561593,2635.3,2635.2,3.03582]
[1727394546378,0.82727574,2635.3,2635.2,3.03582]
[1727394546680,0.03561593,2635.3,2635.2,3.03582]
[1727394547239,0.82727574,2635.3,2635.2,5.47656332]
[1727394547484,0.03561593,2635.3,2635.2,6.33540064]
[1727394547774,0.03561593,2635.3,2635.2,6.41129058]
[1727394548140,0.79165981,2635.6,2635.2,6.41129058]
[1727394548352,0.79165981,2635.6,2635.5,3.03547]
[1727394548653,0.79165981,2635.6,2635.5,3.80464933]
[1727394549242,1.22136021,2635.6,2635.5,3.80464933]
[1727394549437,0.82685319,2635.6,2635.5,3.03547]
[1727394551465,1.38425319,2635.6,2635.4,3.03558]
[1727394551678,0.79237189,2635.5,2635.4,3.03558]
[1727394551882,0.8271504,2635.5,2635.4,3.03558]
[1727394552696,0.03477851,2635.5,2635.4,3.03558]
[1727394553597,0.82651874,2635.5,2635.4,3.03558]
[1727394558373,0.03477851,2635.5,2635.4,3.03558]
[1727394559558,0.82640806,2635.5,2635.4,3.03558]
[1727394564476,0.82640806,2635.5,2635.4,4.68658233]
[1727394564684,0.03477851,2635.5,2635.4,7.68658233]
[1727394565368,0.79162955,2636.1,2636.0,3.0349]
[1727394565584,0.79162955,2636.2,2636.1,3.03478]
[1727394566491,0.79162955,2636.3,2636.1,3.03478]
[1727394566636,1.18687891,2636.4,2636.0,1.62074332]
[1727394566637,1.18687891,2636.4,2636.3,3.03455]
[1727394567052,2.14152074,2636.5,2636.3,3.03455]
[1727394567257,1.58412074,2636.4,2636.3,3.03455]
[1727394567453,1.18686018,2636.4,2636.3,3.03455]
[1727394567659,1.58412074,2636.4,2636.3,3.03455]
[1727394567867,2.14152074,2636.5,2636.3,3.03455]
[1727394568448,1.58412074,2636.4,2636.3,3.03455]
[1727394568893,0.5574,2636.5,2636.3,3.03455]
[1727394568894,2.14152074,2636.5,2636.3,3.03455]
[1727394569035,1.58412074,2636.4,2636.3,3.03455]
[1727394569241,2.14152074,2636.5,2636.3,3.03455]
[1727394569772,1.18642125,2636.4,2636.2,3.03467]
[1727394569937,0.79102379,2636.4,2636.3,3.03448]
[1727394573081,0.79102379,2636.4,2636.1,3.03471]
[1727394573774,1.34842379,2636.4,2636.1,3.03471]
[1727394574078,1.34842379,2636.4,2636.0,3.03489]
[1727394574378,0.79102379,2636.3,2636.0,3.03489]
[1727394574682,0.79102379,2636.3,2636.1,3.03468]
[1727394575410,0.79102379,2636.3,2636.1,6.06938]
[1727394575704,0.79102379,2636.3,2636.1,6.06939]
[1727394575903,0.79102379,2636.4,2636.2,3.03467]
[1727394576284,0.79102379,2636.4,2636.1,4.65542332]
[1727394576493,0.79102379,2636.4,2636.3,3.03455]
[1727394577559,1.18642125,2636.6,2636.3,3.03455]
[1727394577560,0.79102379,2636.5,2636.3,3.03455]
[1727394577764,0.79102379,2636.5,2636.2,0.7998]
[1727394578930,0.79102379,2636.5,2636.3,3.03448]
[1727394579359,0.82905689,2636.7,2636.5,3.83472]
[1727394579566,0.82905689,2636.7,2636.6,3.03421]
[1727394579807,0.0380331,2636.7,2636.6,3.03421]
[1727394580423,0.0380331,2636.7,2636.6,3.11006067]
[1727394580567,0.0380331,2636.7,2636.6,3.03421]
[1727394581063,0.0380331,2636.7,2636.6,3.11005061]
[1727394581263,0.0380331,2636.7,2636.6,4.69116139]
[1727394582008,0.0380331,2636.7,2636.6,4.76700196]
[1727394582169,0.0380331,2636.7,2636.6,4.69116139]
[1727394582882,0.0380331,2636.7,2636.6,7.69116139]
[1727394583288,0.0380331,2636.7,2636.6,9.31190471]
[1727394585528,0.0380331,2636.7,2636.6,7.69116139]
[1727394585684,0.0380331,2636.7,2636.6,9.31190471]
[1727394592987,0.0380331,2636.7,2636.6,7.69116139]
[1727394593195,0.0380331,2636.7,2636.6,9.31190471]
[1727394593979,0.0380331,2636.7,2636.6,3.89076139]
[1727394594139,0.0380331,2636.7,2636.6,3.03421]
[1727394596729,0.5954331,2636.7,2636.6,3.03421]
[1727394596957,0.5954331,2636.7,2636.5,3.03432]
[1727394597808,0.5954331,2636.7,2636.6,3.03421]
[1727394598435,0.0380331,2636.7,2636.6,3.03421]
[1727394598643,0.0380331,2636.7,2636.6,3.88614733]
[1727394599210,0.0380331,2636.7,2636.6,3.03421]
[1727394601413,0.0380331,2636.7,2636.6,3.86431]
[1727394603451,0.0380331,2636.7,2636.6,3.03421]
[1727394612432,0.0380331,2636.7,2636.6,4.65495332]
[1727394613885,0.0380331,2636.7,2636.6,3.03421]
[1727394614245,0.0380331,2636.7,2636.6,3.87844733]
[1727394614675,0.0380331,2636.7,2636.2,0.7531]
[1727394614991,0.0380331,2636.7,2636.2,3.03462]
[1727394614992,0.5574,2636.6,2636.2,3.03462]
[1727394615141,1.34842379,2636.5,2636.2,3.03462]
[1727394615341,0.5574,2636.4,2635.7,8.0931]
[1727394615552,0.5574,2636.4,2636.1,3.03467]
[1727394615776,0.5574,2636.4,2636.2,3.03465]
[1727394616344,0.5574,2636.4,2636.0,3.0349]
[1727394616546,0.5574,2636.4,2635.9,3.03497]
[1727394616547,1.62763707,2636.4,2635.9,3.03497]
[1727394616745,1.62763707,2636.4,2636.1,3.03476]
[1727394616949,1.62763707,2636.4,2636.1,3.0347]
[1727394617176,1.34842379,2636.4,2635.8,1.62074332]
[1727394617381,1.34842379,2636.4,2636.2,3.03464]
[1727394617565,0.5574,2636.4,2636.2,3.03464]
[1727394618193,0.5574,2636.4,2636.1,3.03471]
[1727394618350,0.5574,2636.4,2636.3,3.03455]
[1727394618692,1.34842379,2636.6,2636.1,0.7531]
[1727394618865,1.34842379,2636.6,2636.5,3.03432]
[1727394619193,0.5574,2636.6,2636.5,3.03432]
[1727394620072,1.34842379,2636.6,2636.4,3.03437]
[1727394620301,0.5574,2636.6,2636.4,3.03437]
[1727394620593,0.5574,2636.6,2636.4,3.03434]
[1727394620804,0.5574,2636.6,2636.5,3.03432]
[1727394621503,1.34842379,2636.6,2636.5,3.03432]
[1727394625500,1.35095119,2636.6,2636.5,3.03432]
[1727394625688,0.5574,2636.6,2636.5,3.03432]
[1727394626471,1.35097107,2636.6,2636.5,3.03432]
[1727394626971,0.0380331,2636.7,2636.6,3.03421]
[1727394627165,0.83162932,2636.7,2636.6,3.03421]
[1727394627368,0.0380331,2636.7,2636.6,3.722003]
[1727394629526,0.0380331,2636.7,2636.6,3.79784637]
[1727394629679,0.0380331,2636.7,2636.6,4.60724637]
[1727394629881,0.0380331,2636.7,2636.6,4.531403]
[1727394630701,0.0380331,2636.7,2636.6,4.60724041]
[1727394630901,0.0380331,2636.7,2636.6,5.30664839]
[1727394631100,0.0380331,2636.7,2636.6,5.38249411]
[1727394631305,0.0380331,2636.7,2636.6,5.3824933]
[1727394631604,0.0380331,2636.7,2636.6,4.60723737]
[1727394631750,0.0380331,2636.7,2636.6,4.531403]
[1727394632048,0.0380331,2636.7,2636.6,4.60723708]
[1727394632247,0.0380331,2636.7,2636.6,5.30654578]
[1727394632421,0.0380331,2636.7,2636.6,4.531403]
[1727394632626,0.0380331,2636.7,2636.6,5.38228301]
[1727394632811,0.0380331,2636.7,2636.6,8.38228301]
[1727394633011,0.0380331,2636.7,2636.6,9.46898312]
[1727394633413,0.0380331,2636.7,2636.6,10.26637352]
[1727394633657,0.0380331,2636.7,2636.6,9.46898312]
[1727394635250,0.0380331,2636.7,2636.6,9.4685703]
[1727394635408,0.0380331,2636.7,2636.6,9.46857108]
[1727394635612,0.0380331,2636.7,2636.6,8.30644382]
[1727394635853,0.0380331,2636.7,2636.6,9.46837886]
[1727394636223,0.0380331,2636.7,2636.6,10.26576926]
[1727394636858,0.0380331,2636.7,2636.6,9.46837886]
[1727394637014,0.0380331,2636.7,2636.6,10.26576926]
[1727394637217,0.0380331,2637.5,2637.4,3.03329]
[1727394638111,0.0380331,2637.5,2637.4,4.07230033]
[1727394638823,0.11831829,2637.5,2637.4,4.07230033]
[1727394640117,0.11831829,2637.5,2637.4,8.47153188]
[1727394640317,0.11831829,2637.5,2637.4,8.39571364]
[1727394640521,0.0380331,2637.5,2637.4,11.39571364]
[1727394642429,0.0380331,2637.5,2637.4,12.16848024]
[1727394642632,0.0380331,2637.5,2637.4,11.39571364]
[1727394648626,0.0380331,2637.5,2637.4,4.88760033]
[1727394649126,0.0380331,2637.5,2637.4,8.39571364]
[1727394650265,0.0380331,2637.5,2637.4,11.39571364]
[1727394670440,0.0380331,2637.5,2637.4,9.88436078]
[1727394671640,0.0380331,2637.5,2637.4,10.65661594]
[1727394671835,0.0380331,2637.5,2637.4,11.81497798]
[1727394672003,0.0380331,2637.5,2637.4,11.81496493]
[1727394672195,0.0380331,2637.5,2637.4,10.65660244]
[1727394672609,0.0380331,2637.5,2637.4,11.81545447]
[1727394673057,0.0380331,2637.5,2637.4,8.65984199]
[1727394673215,0.0380331,2637.5,2637.4,9.50406078]
[1727394673635,0.0380331,2637.5,2637.4,10.27697006]
[1727394674613,0.0380331,2637.5,2637.4,11.4367435]
[1727394675247,0.0380331,2637.5,2637.4,11.43678743]
[1727394675455,0.0380331,2637.5,2637.4,10.27697006]
[1727394675654,0.0380331,2637.5,2637.4,11.43726458]
[1727394676060,0.0380331,2637.5,2637.4,10.27759355]
[1727394676623,0.0380331,2637.5,2637.4,11.43831816]
[1727394678924,0.0380331,2637.5,2637.4,9.00655771]
[1727394679125,0.0380331,2637.5,2637.4,3.03329]
[1727394679347,0.0380331,2637.5,2637.4,4.64975045]
[1727394680329,0.0380331,2637.5,2637.4,7.72556773]
[1727394680665,0.0380331,2637.5,2637.4,7.64975045]
[1727394681831,0.0380331,2637.5,2637.4,8.42464269]
[1727394682057,0.0380331,2637.5,2637.4,8.42465307]
[1727394682727,0.0380331,2637.5,2637.4,9.58725453]
[1727394682928,0.0380331,2637.5,2637.4,10.92881078]
[1727394683242,0.0380331,2637.5,2637.4,11.71019851]
[1727394683426,0.5574,2638.0,2637.9,3.03271]
[1727394683627,0.5574,2638.0,2637.9,4.64917045]
[1727394684562,0.5574,2638.0,2637.9,4.72497582]
[1727394684762,0.0380331,2638.3,2638.1,3.03247]
[1727394684763,0.5574,2638.2,2638.1,3.03247]
[1727394684970,0.5574,2638.2,2638.1,4.64893045]
[1727394685529,0.5574,2638.2,2638.1,4.72473494]
[1727394685765,0.5574,2638.2,2638.1,4.64893045]
[1727394686359,0.5574,2638.2,2638.1,3.03247]
[1727394686930,0.5574,2638.2,2638.1,4.29251649]
[1727394687132,0.5574,2638.2,2638.1,3.03247]
[1727394687875,1.35100089,2638.2,2638.1,3.03247]
[1727394688047,1.42964812,2638.2,2638.1,3.03247]
[1727394688254,0.63604723,2638.2,2638.1,3.03247]
[1727394689137,1.42964812,2638.2,2638.1,3.03247]
[1727394689550,1.82246848,2638.2,2638.1,3.03247]
[1727394690237,0.63604723,2638.2,2638.1,3.03247]
[1727394690876,1.82246848,2638.2,2638.1,3.03247]
[1727394694449,1.43074967,2638.2,2638.1,3.03247]
[1727394694939,1.43073304,2638.2,2638.1,3.03247]
[1727394695140,0.63604723,2638.2,2638.1,3.03247]
[1727394695543,1.82246848,2638.2,2638.1,3.03247]
[1727394696051,0.63604723,2638.2,2638.1,3.03247]
[1727394696242,2.22016797,2638.2,2638.1,3.03247]
[1727394696444,0.63604723,2638.2,2638.1,3.03247]
[1727394696644,1.82812679,2638.2,2638.1,3.03247]
[1727394696867,0.63604723,2638.2,2638.1,3.03247]
[1727394697439,2.22016797,2638.2,2638.1,3.03247]
[1727394698272,0.5574,2638.1,2638.0,3.0326]
[1727394698481,1.82814533,2638.1,2638.0,3.0326]
[1727394706486,0.63612491,2638.1,2638.0,3.0326]
[1727394706682,1.06063593,2638.1,2637.9,3.0327]
[1727394706882,1.06063593,2638.1,2638.0,3.0326]
[1727394707061,1.8281975,2638.1,2638.0,3.0326]
[1727394708290,0.87346691,2638.1,2638.0,3.0326]
[1727394708601,0.87345351,2638.1,2638.0,3.0326]
[1727394709782,0.07872491,2638.1,2638.0,3.0326]
[1727394710298,0.873473,2638.1,2638.0,3.0326]
[1727394710503,0.07872491,2638.1,2638.0,3.0326]
[1727394710702,0.87347108,2638.1,2638.0,3.0326]
[1727394711274,0.87347108,2638.1,2638.0,5.49633915]
[1727394711498,0.07872491,2638.1,2638.0,5.49633915]
[1727394711711,0.87347108,2638.1,2638.0,5.49633915]
[1727394712382,0.07872491,2638.1,2638.0,5.49633915]
[1727394712725,0.87347108,2638.1,2638.0,3.87919447]
[1727394712867,0.07872491,2638.1,2638.0,3.0326]
[1727394713216,0.87347108,2638.1,2638.0,3.0326]
[1727394713921,1.2707975,2638.1,2638.0,3.0326]
[1727394718223,0.07872491,2638.1,2638.0,3.0326]
[1727394718384,1.27118974,2638.1,2637.9,3.0327]
[1727394718589,1.19246483,2638.0,2637.9,3.0327]
[1727394719128,1.27042221,2638.0,2637.9,3.0327]
[1727394721519,1.27042221,2638.0,2637.8,3.03275]
[1727394721700,1.2703846,2638.0,2637.8,3.03275]
[1727394721896,1.19242722,2637.9,2637.8,3.03275]
[1727394722092,1.26788368,2637.9,2637.8,3.03275]
[1727394723694,0.87032663,2637.9,2637.8,3.03275]
[1727394724132,0.87032663,2637.9,2637.8,6.17297715]
[1727394724133,0.07545646,2637.9,2637.8,6.17297715]
[1727394724310,0.07545646,2637.9,2637.8,6.24878814]
[1727394724510,0.87034473,2637.9,2637.8,6.24878814]
[1727394724997,0.07545646,2637.9,2637.8,6.24878814]
[1727394725514,0.87034473,2637.9,2637.8,6.24878814]
[1727394725718,0.07545646,2637.9,2637.8,6.17297715]
[1727394726117,0.87034473,2637.9,2637.8,6.17297715]
[1727394726507,1.42774473,2637.9,2637.8,3.03275]
[1727394726711,1.82528368,2637.9,2637.8,3.03275]
[1727394726913,1.26788368,2637.9,2637.8,3.03275]
[1727394727105,0.07545646,2637.9,2637.8,3.03275]
[1727394727814,1.26788368,2637.9,2637.8,3.03275]
[1727394729450,0.07545646,2637.9,2637.8,3.03275]
[1727394729616,1.26788368,2637.9,2637.8,3.03275]
[1727394732446,0.07545646,2637.9,2637.8,3.03275]
[1727394732855,1.2679701,2637.9,2637.8,3.03275]
[1727394734213,0.07545646,2637.9,2637.8,3.03275]
[1727394734553,1.6595772,2637.9,2637.8,3.03275]
[1727394737132,0.5574,2637.8,2637.5,3.03309]
[1727394737463,1.19227857,2637.6,2637.5,3.03309]
[1727394737618,1.26466544,2637.7,2637.6,3.03306]
[1727394737817,1.19227857,2637.7,2637.6,3.03306]
[1727394740583,1.26463471,2637.7,2637.6,3.03306]
[1727394743678,0.07235614,2637.7,2637.6,3.03306]
[1727394744028,1.74967857,2637.8,2637.6,3.03306]
[1727394744231,0.07223826,2637.7,2637.6,3.03306]
[1727394744633,0.79447405,2637.7,2637.6,3.03306]
[1727394744870,0.86671993,2637.7,2637.6,3.03306]
[1727394745042,0.07223826,2637.7,2637.6,3.03306]
[1727394745241,0.8667213,2637.7,2637.6,3.03306]
[1727394745670,1.26451683,2637.7,2637.6,3.03306]
[1727394745870,1.26451683,2637.7,2637.5,3.03309]
[1727394746056,1.80437459,2637.7,2637.3,3.03338]
[1727394746260,0.79441603,2637.5,2637.3,3.03333]
[1727394746462,0.5574,2637.4,2637.3,3.03333]
[1727394746666,0.62868082,2637.4,2637.3,3.03333]
[1727394746841,1.42309685,2637.4,2637.2,3.0335]
[1727394747037,1.42309685,2637.4,2637.1,3.03357]
[1727394747038,0.79441603,2637.3,2637.1,3.03357]
[1727394747237,0.79441603,2637.3,2637.2,3.03352]